bitfinex/quotes_ETHUSD_20241106
["timestamp","ask_amount","ask_price","bid_price","bid_amount"]
[1730900604412,0.55,2618.6,2618.2,3.81939]
[1730900605193,0.55,2618.6,2618.3,0.04232586]
[1730900605644,0.55,2618.6,2618.2,3.81939]
[1730900605824,0.55,2618.6,2618.4,0.04225666]
[1730900606071,0.55,2618.6,2618.3,0.04232586]
[1730900606329,0.55,2618.6,2618.2,3.81939]
[1730900606330,0.55,2618.6,2618.4,0.04225666]
[1730900606529,0.55,2618.6,2618.2,3.81939]
[1730900606717,0.55,2618.6,2618.3,0.04232586]
[1730900606913,0.55,2618.6,2618.2,3.81939]
[1730900607114,0.55,2618.6,2618.3,0.04232586]
[1730900607336,0.55,2618.6,2618.1,4.63338]
[1730900607515,0.55,2618.6,2618.3,3.81926]
[1730900607835,0.55,2618.6,2618.4,0.04225666]
[1730900608014,1.025261,2618.6,2618.4,0.04225666]
[1730900608211,1.025261,2618.6,2618.2,3.81941]
[1730900608423,0.55,2618.6,2618.5,0.04218746]
[1730900609034,0.55,2618.7,2618.3,7.63837]
[1730900609241,0.55,2618.7,2618.5,0.04218746]
[1730900609455,0.55,2618.7,2618.4,0.04225666]
[1730900609606,0.55,2618.7,2618.6,0.04211827]
[1730900610025,0.55,2618.7,2618.3,7.63836]
[1730900610229,0.55,2618.7,2618.6,0.04211827]
[1730900610460,0.986854,2618.7,2618.3,3.81917]
[1730900610935,0.986854,2618.7,2618.4,0.04225666]
[1730900611132,0.55,2618.7,2618.4,3.86135666]
[1730900611534,0.55,2618.7,2618.4,0.04225666]
[1730900611535,3.81883,2618.6,2618.4,0.04225666]
[1730900611734,4.36898,2618.5,2617.9,3.81974]
[1730900611972,0.55,2618.2,2618.0,0.0425335]
[1730900612470,0.55,2618.3,2617.9,3.81973]
[1730900612763,0.55,2618.3,2618.0,0.04126374]
[1730900613345,4.36927,2618.3,2618.0,0.04126374]
[1730900613776,0.55,2618.3,2618.0,0.04126374]
[1730900614265,0.55,2618.4,2618.1,3.81949]
[1730900614463,0.55,2618.4,2618.0,3.86088374]
[1730900614664,3.81864,2618.8,2618.2,3.8604553]
[1730900614840,3.81864,2618.8,2618.4,3.81912]
[1730900614841,0.55,2618.7,2618.4,3.81912]
[1730900615254,0.55,2618.7,2618.5,0.0409177]
[1730900615457,0.3839,2618.6,2618.5,0.0409177]
[1730900615630,12.98025457,2618.6,2618.5,0.0409177]
[1730900615968,4.37015,2617.7,2617.3,3.82059]
[1730900616139,4.37015,2617.7,2617.4,0.04036936]
[1730900616338,0.55,2617.7,2617.4,0.04036936]
[1730900616567,0.55,2617.7,2617.1,3.82091]
[1730900616568,3.8203,2617.6,2617.1,3.82091]
[1730900616728,0.55,2617.7,2617.3,3.82062]
[1730900616927,0.55,2617.7,2617.4,0.04036936]
[1730900617366,4.37016,2617.7,2617.4,0.04036936]
[1730900617568,4.37016,2617.7,2617.2,3.82078]
[1730900617756,4.37016,2617.7,2617.3,0.04020563]
[1730900617968,4.37016,2617.7,2617.3,3.82071]
[1730900618164,0.55,2617.7,2617.4,0.04008734]
[1730900618355,0.55,2617.8,2617.4,0.04008734]
[1730900618853,7.30263519,2617.9,2617.4,0.04008734]
[1730900618854,0.55,2617.9,2617.4,0.04008734]
[1730900619071,4.806851,2617.9,2617.4,0.04008734]
[1730900619242,0.55,2617.7,2617.4,0.04008734]
[1730900619582,0.55,2617.7,2617.4,3.86065734]
[1730900619956,0.55,2617.8,2617.4,3.86065734]
[1730900620285,0.3839,2617.7,2617.4,0.04008734]
[1730900621291,4.37036,2617.6,2617.4,0.04008734]
[1730900621587,4.37064,2617.4,2617.0,3.82115]
[1730900621787,4.37064,2617.4,2616.9,3.82121]
[1730900621788,0.55,2617.4,2617.1,3.82099]
[1730900621938,0.55,2617.6,2617.2,3.82086]
[1730900622140,0.55,2617.6,2617.3,3.82059]
[1730900622344,0.55,2617.7,2617.4,3.82057]
[1730900622847,0.55,2617.9,2617.4,7.64105]
[1730900623188,5.60926997,2617.9,2617.4,3.82048]
[1730900623482,1.78941997,2617.9,2617.6,3.8202]
[1730900623641,1.78941997,2617.9,2617.5,3.82043]
[1730900623844,0.217332,2617.8,2617.3,3.8207]
[1730900624037,0.55,2617.7,2617.4,3.82051]
[1730900624640,0.55,2617.8,2617.5,3.82041]
[1730900626182,0.55,2617.6,2617.2,3.82076]
[1730900626490,7.85263519,2617.6,2617.1,3.82101]
[1730900626688,13.37668848,2617.6,2617.1,3.82101]
[1730900626858,13.37668848,2617.6,2617.2,3.82085]
[1730900627948,9.55629848,2617.6,2617.2,7.64164]
[1730900628189,9.55629848,2617.6,2617.2,3.82079]
[1730900628615,9.55629848,2617.6,2617.2,7.6416]
[1730900629288,9.55629848,2617.6,2617.0,0.8244]
[1730900629289,7.85263519,2617.6,2617.1,3.82102]
[1730900629472,0.55,2617.8,2617.5,3.82043]
[1730900629792,0.55,2617.8,2617.6,3.82025]
[1730900630097,0.55,2617.8,2617.5,3.82043]
[1730900630389,5.226506,2617.8,2617.3,3.82066]
[1730900630564,5.226506,2617.8,2617.4,3.82058]
[1730900631956,5.226506,2617.8,2617.0,0.8244]
[1730900631957,1.406376,2617.8,2617.0,4.64555]
[1730900632183,0.55,2617.8,2617.1,3.82102]
[1730900632350,0.55,2617.8,2617.5,3.82043]
[1730900632753,0.55,2617.8,2617.6,3.82029]
[1730900632994,3.81,2617.9,2617.8,3.82]
[1730900633157,15.31588519,2618.3,2617.8,3.82]
[1730900633351,1.91350952,2618.2,2617.8,3.82]
[1730900633556,15.31588519,2618.3,2618.0,3.81968]
[1730900633557,11.49653519,2618.3,2618.0,3.81968]
[1730900633796,11.49653519,2618.3,2617.9,3.81977]
[1730900634301,11.49653519,2618.3,2618.0,3.81969]
[1730900635297,11.49653519,2618.3,2618.1,0.04073409]
[1730900635452,0.55,2618.2,2618.1,0.04073409]
[1730900636460,0.55,2618.2,2617.8,3.81999]
[1730900636461,4.36941,2618.2,2617.8,3.81999]
[1730900636659,0.55,2618.2,2618.1,0.0400716]
[1730900636892,0.55,2618.2,2617.9,3.81984]
[1730900637060,0.55,2618.2,2618.1,0.03959913]
[1730900637261,2.67164687,2618.2,2618.0,0.03966833]
[1730900637487,2.67164687,2618.2,2618.1,0.03945546]
[1730900637692,0.55,2618.2,2618.1,3.85901546]
[1730900637859,0.55,2618.2,2618.1,3.81956]
[1730900638189,3.81,2618.3,2618.2,3.81941]
[1730900638394,3.81,2618.3,2618.2,3.85937606]
[1730900638866,0.55,2618.7,2618.2,3.85937606]
[1730900639068,1.025252,2618.7,2618.4,3.81912]
[1730900639464,1.025252,2618.7,2618.5,0.03969498]
[1730900639893,1.025252,2618.7,2618.3,3.81925]
[1730900640066,1.025252,2618.7,2618.6,0.03962579]
[1730900640067,4.843952,2618.7,2618.6,0.03962579]
[1730900640280,5.19966142,2618.7,2618.2,3.8194]
[1730900640492,0.55,2618.5,2618.2,3.8194]
[1730900640690,0.55,2618.5,2618.3,3.81925]
[1730900640981,0.55,2618.7,2618.3,7.6384]
[1730900641284,0.55,2618.7,2618.2,3.81941]
[1730900641611,0.3839,2618.8,2618.5,3.81895]
[1730900642680,0.55,2618.7,2618.4,3.81905]
[1730900642894,0.55,2618.7,2617.8,0.01]
[1730900642895,0.55,2618.3,2617.9,3.81977]
[1730900643069,4.93056974,2618.7,2617.5,3.82032]
[1730900643070,0.3839,2618.9,2618.5,3.81884]
[1730900643272,0.3839,2618.9,2618.1,0.7525]
[1730900643273,0.55,2618.8,2618.1,4.57199]
[1730900643577,0.55,2618.8,2618.1,4.57192]
[1730900643578,0.55,2618.6,2618.1,4.57192]
[1730900643812,0.55,2618.6,2618.3,3.81919]
[1730900643980,0.55,2618.8,2618.0,0.07638519]
[1730900644182,0.35594442,2618.7,2618.5,3.81898]
[1730900644391,0.55,2618.8,2618.5,3.81898]
[1730900644772,0.3559596,2618.7,2618.5,3.81898]
[1730900645119,0.55,2618.8,2618.5,3.81898]
[1730900645266,0.35601812,2618.7,2618.5,3.81898]
[1730900645470,0.35601812,2618.6,2618.5,3.81898]
[1730900645706,0.35601812,2618.7,2618.5,3.81898]
[1730900646396,0.35601812,2618.7,2618.4,3.8191]
[1730900646774,0.35601812,2618.7,2618.5,3.81895]
[1730900647287,0.35601812,2618.7,2618.4,3.81903]
[1730900647500,0.35601812,2618.7,2618.5,3.81891]
[1730900649436,0.35601812,2618.7,2618.4,3.81903]
[1730900649585,0.90601812,2618.6,2618.3,3.81926]
[1730900649789,0.3839,2618.9,2618.5,3.81898]
[1730900650014,1.47623464,2618.8,2618.4,3.81911]
[1730900650228,1.70048852,2618.8,2618.4,3.81911]
[1730900650521,0.55,2618.6,2618.5,0.03935433]
[1730900650721,0.90625405,2618.6,2618.5,0.03935433]
[1730900650928,0.55,2618.8,2618.4,4.60812]
[1730900651227,0.55,2618.6,2618.5,3.85824767]
[1730900651387,0.90623188,2618.6,2618.5,3.85824767]
[1730900651586,0.55,2618.8,2618.5,3.85824767]
[1730900651783,0.55,2618.6,2618.5,3.85824767]
[1730900652013,0.90623514,2618.6,2618.5,3.85824767]
[1730900652325,0.55,2618.8,2618.5,0.03935767]
[1730900652526,0.55,2618.6,2618.5,0.03935767]
[1730900652699,0.90623698,2618.6,2618.5,0.03935767]
[1730900653825,0.35625863,2618.6,2618.5,0.03935767]
[1730900654033,0.55,2618.6,2618.5,3.85833767]
[1730900654529,0.55,2618.8,2618.5,3.85833767]
[1730900654738,0.55,2618.6,2618.5,3.85833767]
[1730900655319,4.36859,2618.8,2618.5,0.03935767]
[1730900655519,0.55,2618.6,2618.5,0.03935767]
[1730900655729,0.35623929,2618.6,2618.5,3.85824767]
[1730900655927,0.55,2618.8,2618.5,3.85824767]
[1730900656144,0.35623167,2618.7,2618.5,3.85824767]
[1730900656339,0.55,2618.8,2618.5,3.85824767]
[1730900656542,0.3562226,2618.7,2618.5,0.03935767]
[1730900656740,0.3562226,2618.6,2618.5,0.03935767]
[1730900656907,0.3562226,2618.7,2618.5,3.85833767]
[1730900657107,0.3839,2618.9,2618.6,3.81883]
[1730900657445,0.35622118,2618.8,2618.7,0.03940257]
[1730900657643,0.3839,2618.9,2618.7,0.03273442]
[1730900657830,0.35622144,2618.8,2618.7,0.03273442]
[1730900658024,0.35622144,2618.8,2618.5,3.81896]
[1730900658237,0.3839,2618.9,2618.7,0.0391803]
[1730900658412,0.35618459,2618.8,2618.6,0.0392495]
[1730900658606,0.3839,2618.9,2618.8,0.03909108]
[1730900658806,1.89056625,2618.9,2618.6,3.81869]
[1730900659006,0.35618473,2618.8,2618.7,0.03916027]
[1730900660404,0.35618473,2618.8,2618.7,3.85784027]
[1730900660608,3.81,2619.2,2618.9,3.81839]
[1730900660808,0.35611236,2619.1,2619.0,3.85711603]
[1730900661033,3.81,2619.2,2619.0,3.85711603]
[1730900661034,3.81,2619.2,2619.1,3.8181]
[1730900661252,4.16607931,2619.2,2619.1,3.8181]
[1730900661447,3.81,2619.2,2619.1,0.03887686]
[1730900661834,3.81,2619.2,2618.8,4.63282]
[1730900661835,3.81,2619.2,2619.0,3.81823]
[1730900662143,3.81,2619.2,2619.1,0.03887686]
[1730900666611,3.81,2619.2,2619.1,3.85697686]
[1730900667034,5.478,2619.6,2619.4,3.81763]
[1730900667517,5.478,2619.6,2619.5,0.03860021]
[1730900668144,5.478,2619.6,2619.5,3.85612021]
[1730900668325,3.81,2619.7,2619.6,3.81737]
[1730900668531,3.81,2619.7,2619.6,4.67928073]
[1730900668819,3.81,2619.7,2619.6,0.86191073]
[1730900669014,3.81,2619.7,2619.6,0.03831073]
[1730900669249,4.22939,2619.7,2619.3,3.81772]
[1730900669455,4.22939,2619.7,2619.6,0.03808706]
[1730900669750,4.58500222,2619.7,2619.2,3.81795]
[1730900669958,4.22939,2619.7,2619.2,3.81795]
[1730900670125,0.81696008,2619.6,2619.1,3.81798]
[1730900670334,0.461329,2619.6,2619.3,0.03828451]
[1730900670531,0.35563211,2619.5,2619.2,0.03835367]
[1730900670732,0.50463511,2619.5,2618.9,3.81837]
[1730900670931,0.50463511,2619.5,2619.0,3.85667202]
[1730900671225,0.35565865,2619.4,2619.0,3.85667202]
[1730900671425,0.50463511,2619.5,2619.0,7.67481202]
[1730900671626,0.35565904,2619.4,2619.1,3.81799]
[1730900671826,0.35565904,2619.4,2619.0,0.03849202]
[1730900671827,0.3839,2619.8,2619.3,3.81771]
[1730900672040,0.3839,2619.8,2619.2,3.81786]
[1730900672041,0.3839,2620.1,2619.5,3.81752]
[1730900672275,3.81,2620.0,2619.7,3.81721]
[1730900672423,3.81,2620.0,2619.7,7.63437]
[1730900672626,3.81,2620.0,2619.8,3.85501543]
[1730900672967,3.81,2620.0,2619.8,0.03793543]
[1730900673327,5.45927235,2620.0,2619.8,3.817]
[1730900673549,5.45927235,2620.0,2619.9,0.0377913]
[1730900674156,5.45927235,2620.0,2619.7,8.41205]
[1730900674447,5.45927235,2620.0,2619.8,0.03786043]
[1730900674824,5.45927235,2620.0,2619.7,4.59492]
[1730900675125,5.45927235,2620.0,2619.8,0.03786043]
[1730900675327,5.45927235,2620.0,2619.7,4.59492]
[1730900675659,5.45927235,2620.0,2619.8,0.03786043]
[1730900676027,5.45927235,2620.0,2619.7,4.59492]
[1730900676232,5.45927235,2620.0,2619.9,0.03777906]
[1730900677164,5.45927235,2620.0,2619.7,0.7778]
[1730900677323,5.45927235,2620.0,2619.8,0.03784819]
[1730900677541,5.45927235,2620.0,2619.7,0.7778]
[1730900677755,5.45927235,2620.0,2619.7,4.59502]
[1730900677942,5.45927235,2620.0,2619.8,0.03784819]
[1730900678247,5.45927235,2620.0,2619.7,4.59502]
[1730900678451,5.45927235,2620.0,2619.9,0.03777906]
[1730900678634,5.45927235,2620.0,2619.8,0.03784819]
[1730900678835,5.45927235,2620.0,2619.9,0.03777906]
[1730900679035,5.81488346,2620.0,2619.9,0.03777906]
[1730900679258,5.45927235,2620.0,2619.7,4.59502]
[1730900679544,5.84317235,2620.0,2618.5,0.7992]
[1730900679876,5.84317235,2620.0,2614.9,2.7795]
[1730900679877,0.3839,2618.7,2618.1,3.81947]
[1730900680095,0.92499645,2618.6,2618.1,3.81947]
[1730900680247,0.92499645,2618.5,2618.1,3.81947]
[1730900680440,0.35567711,2618.4,2618.1,3.81947]
[1730900680635,0.35567711,2618.3,2617.9,0.7992]
[1730900680840,0.35567711,2618.2,2617.8,3.82]
[1730900681038,0.73957711,2618.1,2617.7,3.82011]
[1730900681248,0.3839,2618.1,2617.7,3.82011]
[1730900681450,7.30263519,2618.2,2617.8,3.81986]
[1730900681649,7.30263519,2618.2,2618.0,3.8197]
[1730900681946,7.30263519,2618.2,2617.8,3.81986]
[1730900682455,8.07128871,2618.2,2617.9,3.8198]
[1730900682765,8.07128871,2618.2,2617.6,0.7878]
[1730900682766,7.30263519,2618.2,2618.1,3.81956]
[1730900682953,0.3839,2618.7,2617.6,0.7878]
[1730900682954,0.3839,2618.7,2618.3,3.81924]
[1730900683154,0.35574929,2618.6,2618.4,3.81911]
[1730900683350,3.81,2618.8,2618.4,3.81911]
[1730900683551,4.191,2618.8,2618.4,3.81911]
[1730900683747,4.191,2618.8,2618.4,3.81901]
[1730900683748,3.81,2618.8,2618.4,3.81901]
[1730900683953,3.81,2618.8,2618.7,3.81868]
[1730900684190,7.30263519,2619.1,2618.8,3.81853]
[1730900684396,0.3839,2618.8,2617.6,0.7878]
[1730900684553,8.19970974,2618.4,2617.3,0.8169]
[1730900684749,8.22785841,2618.3,2617.3,4.63751]
[1730900684982,0.35575232,2618.2,2617.4,3.82058]
[1730900685309,2.12910548,2618.2,2617.5,3.82042]
[1730900685516,0.35575232,2618.1,2617.5,3.82042]
[1730900686231,1.20389573,2618.2,2617.5,3.82042]
[1730900686382,0.35581956,2618.1,2617.5,3.82042]
[1730900686588,1.20389573,2618.2,2617.5,3.82042]
[1730900686789,1.20639925,2618.1,2617.5,3.82042]
[1730900687003,0.85065309,2618.1,2617.5,3.82042]
[1730900689223,7.30263519,2618.3,2617.7,3.82004]
[1730900689587,7.30263519,2618.3,2617.8,3.8199]
[1730900689788,7.30263519,2618.3,2617.7,3.82004]
[1730900691410,7.30263519,2618.3,2617.8,3.82]
[1730900692392,7.30263519,2618.3,2617.9,3.81975]
[1730900692595,0.3839,2618.5,2617.9,3.81985]
[1730900692802,4.1939,2618.7,2618.2,3.81931]
[1730900693059,3.81,2618.7,2618.2,3.81931]
[1730900693341,3.81,2618.7,2618.4,3.81903]
[1730900693528,3.81,2618.7,2618.4,7.63807]
[1730900693848,3.81,2618.7,2618.3,0.7655]
[1730900693997,4.92126352,2618.7,2618.3,0.7655]
[1730900695735,4.92126352,2618.7,2618.3,4.58475]
[1730900695897,4.92126352,2618.7,2618.3,4.58476]
[1730900696336,4.92126352,2618.7,2618.3,0.7655]
[1730900696703,4.92126352,2618.7,2618.3,4.58468]
[1730900697124,4.92126352,2618.7,2618.3,0.7655]
[1730900699210,0.49212635,2618.6,2618.0,4.61626]
[1730900699417,3.81901,2618.5,2617.7,3.82011]
[1730900699602,0.87602635,2618.6,2617.8,3.81991]
[1730900699804,0.57972899,2618.5,2617.8,3.81991]
[1730900700400,4.39871899,2618.5,2617.6,7.64032]
[1730900700607,4.39871899,2618.5,2617.6,3.82015]
[1730900701143,0.57972899,2618.5,2617.8,3.81993]
[1730900701445,0.57972899,2618.5,2617.7,3.82014]
[1730900704134,3.81971,2618.0,2617.3,0.8066]
[1730900704746,4.20347,2618.1,2617.3,4.62731]
[1730900705046,0.802296,2618.0,2617.3,0.8066]
[1730900705720,0.802296,2618.0,2617.3,4.62728]
[1730900705922,4.622016,2618.0,2617.3,0.8066]
[1730900706257,3.82051,2617.5,2616.7,0.8239]
[1730900706445,0.3839,2617.6,2616.9,3.8213]
[1730900706645,0.3839,2617.6,2617.0,3.89749759]
[1730900707247,0.804298,2617.6,2616.7,0.8239]
[1730900707437,0.804298,2617.6,2616.5,0.7893]
[1730900707438,0.3839,2617.1,2616.5,0.7893]
[1730900707646,4.20492,2617.1,2616.3,3.82209]
[1730900707971,0.3839,2617.1,2616.8,3.82138]
[1730900708132,0.3839,2617.4,2616.9,0.07642415]
[1730900708330,7.30263519,2617.7,2616.9,0.07642415]
[1730900708331,7.30263519,2617.7,2617.3,3.82072]
[1730900708533,7.30263519,2617.7,2617.1,3.89741967]
[1730900708731,7.30263519,2617.7,2617.1,3.89734967]
[1730900709070,7.30263519,2617.7,2616.9,3.82131]
[1730900709279,0.3839,2617.5,2616.7,0.7887]
[1730900709567,3.82075,2617.3,2616.5,3.82182]
[1730900709882,0.3839,2617.2,2616.6,3.82173]
[1730900710165,0.3839,2617.2,2616.5,4.662323]
[1730900710325,0.3839,2617.2,2616.6,3.82167]
[1730900710525,0.3839,2617.2,2616.5,4.662323]
[1730900710772,0.3839,2617.2,2616.7,3.82153]
[1730900711327,0.3839,2617.2,2616.8,3.82137]
[1730900711691,0.3839,2617.5,2616.9,0.0764223]
[1730900711985,7.30263519,2617.7,2617.2,3.82079]
[1730900712184,7.30263519,2617.7,2617.3,3.8206]
[1730900712386,7.30263519,2617.7,2617.2,4.584924]
[1730900712540,7.30263519,2617.7,2617.2,3.82075]
[1730900713659,7.30263519,2617.7,2617.0,3.82116]
[1730900713979,7.30263519,2617.7,2617.5,3.82041]
[1730900714191,3.81,2618.0,2617.6,3.82027]
[1730900714192,4.1939,2618.0,2617.6,3.82027]
[1730900714335,3.81,2618.0,2617.6,3.8202]
[1730900714536,3.81,2618.0,2617.7,0.07639835]
[1730900714784,3.81,2618.0,2617.2,4.60389]
[1730900714936,3.81,2618.0,2617.4,3.82044]
[1730900715144,3.81,2618.0,2617.6,3.82028]
[1730900715351,3.81,2618.0,2617.8,3.81993]
[1730900715566,3.81,2618.0,2617.9,3.81985]
[1730900715778,3.81,2618.0,2617.8,3.81992]
[1730900716255,3.81,2618.0,2617.8,3.81991]
[1730900716483,3.81,2618.0,2617.8,7.63984]
[1730900716684,3.81,2618.0,2617.7,3.82011]
[1730900716988,3.81,2618.0,2617.8,3.81995]
[1730900717178,3.81,2618.0,2617.8,3.81986]
[1730900718101,3.81,2618.0,2617.7,3.82011]
[1730900718301,3.81,2618.0,2617.6,0.382028]
[1730900718302,4.58476,2617.9,2617.2,4.60388]
[1730900718465,0.7649,2617.9,2617.2,3.82078]
[1730900718978,0.7649,2617.9,2616.9,0.7681]
[1730900718979,4.58483,2617.9,2616.9,0.7681]
[1730900719291,0.839483,2617.8,2617.1,3.82101]
[1730900719476,7.68653519,2617.7,2616.9,3.82122]
[1730900719692,7.68653519,2617.7,2616.7,0.07641741]
[1730900719887,7.68653519,2617.7,2617.2,3.82078]
[1730900720070,7.68653519,2617.7,2617.3,3.82071]
[1730900720251,8.49328871,2617.7,2617.3,3.82071]
[1730900720700,8.49328871,2617.7,2617.1,0.7578]
[1730900720857,8.49328871,2617.7,2617.3,3.8206]
[1730900721053,0.381,2617.9,2617.3,3.8206]
[1730900721054,0.381,2617.9,2617.5,3.82036]
[1730900721382,3.81996,2617.9,2616.6,4.64671]
[1730900721774,3.81996,2617.9,2617.1,3.82093]
[1730900722488,0.35545732,2617.8,2617.1,3.82093]
[1730900722691,3.82015,2617.7,2617.0,3.82113]
[1730900722887,0.3839,2617.6,2617.0,3.82113]
[1730900723067,0.3839,2617.6,2617.1,3.82099]
[1730900723407,0.3839,2617.6,2617.0,3.82116]
[1730900723605,0.92618237,2617.6,2617.1,0.07641103]
[1730900723809,0.3839,2617.6,2617.2,7.64164]
[1730900723990,1.60281373,2617.8,2617.3,3.8206]
[1730900724192,0.3839,2617.8,2617.3,3.82059]
[1730900724503,0.35596536,2617.7,2617.3,7.64121]
[1730900724702,0.3839,2617.8,2617.5,3.82038]
[1730900725018,3.81,2618.0,2617.4,3.82047]
[1730900725307,0.35594147,2617.9,2617.4,7.64098]
[1730900725475,0.35594147,2617.8,2617.4,3.82047]
[1730900725683,0.35594147,2617.7,2617.5,3.82036]
[1730900725865,3.81,2618.0,2617.5,3.82036]
[1730900726067,0.92640228,2617.9,2617.5,3.82036]
[1730900726286,0.35630857,2617.8,2617.5,3.82036]
[1730900726487,0.35630857,2617.7,2617.2,3.82079]
[1730900726769,0.35633354,2617.6,2617.1,0.7805]
[1730900727115,0.3839,2617.6,2616.9,0.8083]
[1730900727315,0.3839,2617.9,2616.9,0.8083]
[1730900727603,0.9264443,2617.8,2616.9,4.6296]
[1730900727791,0.35632473,2617.7,2617.4,3.82057]
[1730900727993,0.3839,2617.9,2617.4,3.82057]
[1730900728301,0.35629765,2617.8,2617.5,3.8204]
[1730900728509,0.3839,2617.9,2617.4,3.82057]
[1730900728707,0.35631172,2617.8,2617.4,3.82057]
[1730900728947,0.35631172,2617.7,2617.4,3.82057]
[1730900729215,1.185247,2617.9,2617.4,3.82057]
[1730900729518,0.35634528,2617.8,2617.2,3.82076]
[1730900729889,0.35634528,2617.7,2617.1,3.821]
[1730900730087,0.35634528,2617.6,2617.1,3.821]
[1730900730330,0.35634528,2617.5,2617.1,3.821]
[1730900730530,0.35634528,2617.4,2617.1,3.821]
[1730900730690,0.802392,2617.7,2617.1,3.821]
[1730900730889,1.31077134,2617.6,2616.8,3.82137]
[1730900731242,1.52020467,2617.5,2617.0,3.82108]
[1730900731529,0.92687134,2617.4,2617.0,3.82108]
[1730900731701,0.35648898,2617.3,2617.1,3.82095]
[1730900731896,0.3839,2617.6,2617.1,3.82095]
[1730900732110,0.92679701,2617.5,2617.1,3.82095]
[1730900732315,0.35646079,2617.4,2617.1,3.82095]
[1730900732516,10.62975,2618.0,2617.3,3.82073]
[1730900732517,0.3839,2617.8,2617.3,3.82073]
[1730900732686,0.92667949,2617.7,2617.3,3.82073]
[1730900733032,0.35641519,2617.6,2617.4,3.82057]
[1730900733213,0.3839,2617.8,2617.4,3.82049]
[1730900733532,0.35639176,2617.7,2617.6,3.82021]
[1730900734041,3.81,2618.0,2617.7,3.82001]
[1730900734199,3.81,2618.0,2617.8,3.81985]
[1730900734402,3.81812,2619.1,2617.4,8.20112974]
[1730900734403,0.3839,2618.7,2617.9,0.07639013]
[1730900734655,3.81785,2619.3,2618.4,3.81909]
[1730900734656,0.92635964,2618.6,2618.4,3.81909]
[1730900734799,0.92635964,2618.6,2618.4,3.81905]
[1730900734995,3.81,2618.8,2618.5,3.81898]
[1730900735243,3.81,2618.8,2618.4,3.81905]
[1730900735244,0.35624332,2618.7,2618.4,3.81905]
[1730900735411,4.22939,2618.8,2618.2,3.81928]
[1730900735614,0.35616215,2618.7,2618.0,8.45291]
[1730900735824,0.35616215,2618.6,2618.0,3.8196]
[1730900736131,0.74006215,2618.5,2618.0,3.8196]
[1730900736348,0.35616215,2618.4,2617.8,3.81991]
[1730900736506,0.35616215,2618.4,2617.9,3.81985]
[1730900736703,0.35616215,2618.3,2617.8,3.81997]
[1730900736940,0.35616215,2618.2,2617.5,3.82034]
[1730900737151,0.77370637,2618.2,2617.6,3.82029]
[1730900737435,0.35616215,2618.1,2617.6,3.82029]
[1730900737652,0.35616215,2618.1,2617.7,3.82006]
[1730900738140,0.35616215,2618.1,2617.8,3.81997]
[1730900738347,0.3839,2618.5,2617.4,0.7777]
[1730900738541,0.35619087,2618.4,2618.1,3.81947]
[1730900738725,0.3839,2618.5,2617.8,3.81996]
[1730900739048,4.1939,2618.8,2618.4,3.81912]
[1730900739198,0.35614818,2618.7,2618.4,3.81912]
[1730900739402,0.45500482,2618.7,2618.4,3.81912]
[1730900739951,4.1939,2618.8,2618.5,3.81895]
[1730900740114,3.81,2618.8,2618.7,3.81868]
[1730900740542,3.81,2618.8,2618.6,3.81881]
[1730900740543,0.3839,2619.5,2618.9,3.81832]
[1730900740742,0.92565869,2619.4,2618.9,7.63664]
[1730900740915,0.35602257,2619.3,2619.0,3.81823]
[1730900741100,0.80402,2619.5,2619.0,3.81823]
[1730900741101,0.35602614,2619.2,2619.0,3.81823]
[1730900741303,0.80402,2619.5,2619.1,3.81806]
[1730900741574,0.80402,2619.5,2619.2,3.81795]
[1730900741818,0.3839,2619.5,2619.2,3.81795]
[1730900742409,0.3839,2619.5,2619.2,3.81786]
[1730900743114,0.3839,2619.5,2619.0,3.81815]
[1730900743322,0.3839,2619.5,2618.8,3.81847]
[1730900743527,0.77571407,2619.4,2618.8,3.81847]
[1730900743812,0.35557907,2619.3,2618.8,3.81847]
[1730900744023,0.35557907,2619.3,2618.8,7.63693]
[1730900744229,0.420135,2619.4,2618.9,3.81832]
[1730900744404,0.3839,2619.5,2618.8,3.81853]
[1730900744614,0.3555043,2619.4,2618.8,3.81844]
[1730900744778,0.3839,2619.5,2618.9,3.81838]
[1730900744977,0.35549516,2619.4,2618.9,3.81838]
[1730900745178,0.3839,2619.5,2618.9,3.81838]
[1730900745413,0.420131,2619.4,2618.9,3.81838]
[1730900745624,0.3839,2619.5,2619.1,3.818]
[1730900745803,3.87,2619.8,2619.2,3.81791]
[1730900746017,4.2539,2619.8,2619.2,3.81791]
[1730900746531,0.35524747,2619.7,2619.3,3.8178]
[1730900746818,0.35524747,2619.7,2619.2,3.81791]
[1730900746819,1.19117827,2619.7,2619.2,3.81791]
[1730900747023,5.00849827,2619.7,2618.5,0.7957]
[1730900747183,5.00849827,2619.7,2618.9,3.81826]
[1730900747382,5.00849827,2619.7,2619.0,3.81823]
[1730900747607,0.92623983,2619.6,2619.1,0.07635343]
[1730900747775,0.92623983,2619.6,2619.1,3.89443343]
[1730900748181,0.92623983,2619.6,2619.1,0.07635343]
[1730900748419,0.21174181,2619.5,2619.0,3.81818]
[1730900748623,0.21174181,2619.5,2618.8,3.81845]
[1730900748938,0.21174181,2619.5,2619.0,3.81818]
[1730900749422,0.21174181,2619.5,2618.9,3.81839]
[1730900749983,4.02927181,2619.5,2618.9,3.81839]
[1730900750278,0.49555116,2619.4,2618.8,3.81847]
[1730900750520,0.3839,2619.3,2618.7,3.81856]
[1730900752020,8.01966,2619.3,2618.6,3.8188]
[1730900752319,4.66948112,2619.2,2618.5,3.81888]
[1730900752616,0.85152112,2619.2,2618.6,3.81871]
[1730900754923,0.85152112,2619.2,2618.5,3.81888]
[1730900754924,0.85152112,2619.2,2618.7,3.81868]